fUSD/lending_fUSD_20250111
["ID","MTS","AMOUNT","RATE_DAILY","PERIOD"]
[348524377,1736603460355,-200.0,0.000112,2]
[348524378,1736603460364,-218.49384816,0.00011245,2]
[348524379,1736603460374,-500.0,0.00011256,2]
[348524380,1736603460383,-518.32,0.00011256,2]
[348524381,1736603460393,-777.18,0.00011257,2]
[348524382,1736603460402,-500.0,0.00011257,2]
[348524383,1736603460411,-500.0,0.00011257,2]
[348524384,1736603460426,-674.18,0.00011257,2]
[348524385,1736603460436,-500.0,0.00011257,2]
[348524386,1736603460446,-500.0,0.00011257,2]
[348524387,1736603460456,-500.0,0.00011257,2]
[348524388,1736603460466,-500.0,0.00011257,2]
[348524389,1736603460476,-544.17,0.00011257,2]
[348524390,1736603460486,-500.0,0.00011257,2]
[348524391,1736603460499,-287.55,0.00011257,2]
[348524392,1736603460509,-500.0,0.00011257,2]
[348524393,1736603460522,-500.0,0.00011257,2]
[348524394,1736603460541,-500.0,0.00011257,2]
[348524395,1736603460550,-500.0,0.00011257,2]
[348524396,1736603460560,-580.72,0.00011257,2]
[348524397,1736603460570,-500.0,0.00011257,2]
[348524398,1736603460579,-500.0,0.00011257,2]
[348524399,1736603460590,-500.0,0.00011257,2]
[348524400,1736603460600,-500.0,0.00011257,2]
[348524401,1736603460609,-553.81,0.00011257,2]
[348524402,1736603460621,-338.92,0.00011257,2]
[348524403,1736603460631,-390.96525445,0.00011257,2]
[348524404,1736603460641,-152.79,0.00011257,2]
[348524405,1736603460651,-518.9,0.00011257,2]
[348524406,1736603460661,-321.43,0.00011257,2]
[348524407,1736603460673,-572.98,0.00011257,2]
[348524408,1736603460683,-501.21,0.00011257,2]
[348524409,1736603460693,-500.0,0.00011257,2]
[348524410,1736603460703,-1089.39,0.00011259,2]
[348524411,1736603460713,-1328.17,0.00011259,2]
[348524412,1736603460723,-1316.37,0.00011259,2]
[348524413,1736603460732,-1075.49,0.00011259,2]
[348524414,1736603460741,-500.0,0.00011259,2]
[348524415,1736603460751,-931.88,0.00011259,2]
[348524416,1736603460760,-1446.69,0.00011259,2]
[348524417,1736603460770,-841.26,0.00011259,2]
[348524418,1736603460780,-819.81,0.0001126,2]
[348524419,1736603460790,-500.0,0.0001126,2]
[348524420,1736603460800,-2214.8237967,0.0001126,2]
[348524421,1736603460810,-500.0,0.0001126,2]
[348524422,1736603460819,-2354.45,0.00011261,2]
[348524423,1736603460829,-1110.44,0.00011261,2]
[348524424,1736603460839,-984.69,0.00011261,2]
[348524425,1736603460848,-514.6,0.00011261,2]
[348524426,1736603460858,-500.0,0.00011262,2]
[348524427,1736603460868,-500.0,0.00011262,2]
[348524428,1736603460878,-663.68,0.00011262,2]
[348524429,1736603460888,-500.0,0.00011262,2]
[348524430,1736603460898,-625.65,0.00011262,2]
[348524431,1736603460908,-500.0,0.00011262,2]
[348524432,1736603460919,-578.21,0.00011262,2]
[348524433,1736603460928,-1286.09,0.00011262,2]
[348524434,1736603460938,-1154.22,0.00011262,2]
[348524435,1736603460948,-500.0,0.00011262,2]
[348524436,1736603460958,-500.0,0.00011262,2]
[348524437,1736603460967,-158.43443159,0.00011262,2]
[348524438,1736603460980,-1107.30556841,0.00011262,2]
[348524439,1736603460989,-3324.76,0.00011262,2]
[348524440,1736603460999,-500.0,0.00011262,2]
[348524441,1736603461009,-1160.42,0.00011262,2]
[348524442,1736603461019,-812.63,0.00011262,2]
[348524443,1736603461029,-1272.49,0.00011262,2]
[348524444,1736603461040,-1317.24,0.00011262,2]
[348524445,1736603461050,-1252.89,0.00011262,2]
[348524446,1736603461060,-1492.12,0.00011262,2]
[348524447,1736603461071,-500.0,0.00011262,2]
[348524448,1736603461081,-451.76243052,0.00011262,2]
[348524449,1736603461093,-48.23756948,0.00011262,2]
[348524450,1736603461103,-2839.32,0.00011262,2]
[348524451,1736603461113,-2731.28,0.00011262,2]
[348524452,1736603461123,-1077.97,0.00011262,2]
[348524453,1736603461132,-1146.77,0.00011262,2]
[348524454,1736603461142,-829.6,0.00011262,2]
[348524455,1736603461151,-500.0,0.00011262,2]
[348524456,1736603461161,-500.0,0.00011262,2]
[348524457,1736603461172,-1695.87,0.00011262,2]
[348524458,1736603461183,-1185.34,0.00011262,2]
[348524459,1736603461193,-2047.27,0.00011262,2]
[348524460,1736603461203,-1067.7,0.00011262,2]
[348524461,1736603461213,-1021.9,0.00011262,2]
[348524462,1736603461223,-500.0,0.00011262,2]
[348524463,1736603461232,-803.46,0.00011262,2]
[348524464,1736603461242,-1346.27,0.00011262,2]
[348524465,1736603461252,-1713.52,0.00011262,2]
[348524466,1736603461261,-150.0,0.00011262,2]
[348524467,1736603461271,-1018.84,0.00011262,2]
[348524468,1736603461280,-633.29,0.00011263,2]
[348524469,1736603461290,-897.68,0.00011263,2]
[348524470,1736603461299,-820.36,0.00011263,2]
[348524471,1736603461309,-877.47,0.00011263,2]
[348524472,1736603461319,-2093.3,0.00011263,2]
[348524473,1736603461331,-2101.68,0.00011263,2]
[348524474,1736603461341,-500.0,0.00011263,2]
[348524475,1736603461350,-626.22,0.00011263,2]
[348524476,1736603461360,-991.1,0.00011263,2]
[348524477,1736603461370,-1117.67,0.00011263,2]
[348524478,1736603461380,-553.33,0.00011264,2]
[348524479,1736603461390,-416.98597705,0.00011264,2]
[348524480,1736603461400,-997.51,0.00011264,2]
[348524481,1736603461410,-955.94,0.00011264,2]
[348524482,1736603461420,-500.0,0.00011264,2]
[348524483,1736603461440,-971.79,0.00011264,2]
[348524484,1736603461450,-520.83,0.00011264,2]
[348524485,1736603461459,-905.0,0.00011264,2]
[348524486,1736603461471,-1064.79,0.00011264,2]
[348524487,1736603461481,-954.36,0.00011264,2]
[348524488,1736603461491,-1828.24,0.00011264,2]
[348524489,1736603461500,-621.53,0.00011264,2]
[348524490,1736603461512,-500.0,0.00011264,2]
[348524491,1736603461522,-500.0,0.00011264,2]
[348524492,1736603461531,-1305.99,0.00011264,2]
[348524493,1736603461541,-500.0,0.00011264,2]
[348524494,1736603461550,-1196.5,0.00011264,2]
[348524495,1736603461560,-1086.04,0.00011264,2]
[348524496,1736603461569,-1086.04,0.00011264,2]
[348524497,1736603461579,-700.39,0.00011264,2]
[348524498,1736603461588,-500.0,0.00011264,2]
[348524499,1736603461597,-1996.3,0.00011264,2]
[348524500,1736603461606,-500.0,0.00011264,2]
[348524501,1736603461616,-500.0,0.00011264,2]
[348524502,1736603461625,-813.94,0.00011264,2]
[348524503,1736603461634,-500.0,0.00011264,2]
[348524504,1736603461645,-500.0,0.00011264,2]
[348524505,1736603461655,-500.0,0.00011264,2]
[348524506,1736603461664,-573.53,0.00011264,2]
[348524507,1736603461674,-500.0,0.00011264,2]
[348524508,1736603461683,-629.14,0.00011264,2]
[348524509,1736603461692,-581.9,0.00011264,2]
[348524510,1736603461701,-641.71,0.00011264,2]
[348524511,1736603461710,-844.03,0.00011264,2]
[348524512,1736603461719,-500.0,0.00011264,2]
[348524513,1736603461729,-623.44,0.00011264,2]
[348524514,1736603461739,-500.0,0.00011264,2]
[348524515,1736603461748,-1695.69,0.00011264,2]
[348524516,1736603461758,-704.6,0.00011264,2]
[348524517,1736603461768,-1059.37,0.00011264,2]
[348524518,1736603461777,-500.0,0.00011264,2]
[348524519,1736603461786,-672.1,0.00011264,2]
[348524520,1736603461795,-593.17,0.00011264,2]
[348524521,1736603461805,-500.0,0.00011264,2]
[348524522,1736603461815,-1209.760486,0.00011264,2]
[348524523,1736603461824,-1171.53407,0.00011264,2]
[348524524,1736603461835,-2022.06,0.00011264,2]
[348524525,1736603461845,-500.0,0.00011264,2]
[348524526,1736603461854,-500.0,0.00011264,2]
[348524527,1736603461863,-616.67,0.00011264,2]
[348524528,1736603461873,-500.0,0.00011264,2]
[348524529,1736603461882,-517.21,0.00011264,2]
[348524530,1736603461892,-500.0,0.00011264,2]
[348524531,1736603461901,-2883.11,0.00011264,2]
[348524532,1736603461910,-500.0,0.00011264,2]
[348524533,1736603461920,-500.0,0.00011264,2]
[348524534,1736603461929,-764.33,0.00011264,2]
[348524535,1736603461938,-694.81,0.00011264,2]
[348524536,1736603461947,-500.0,0.00011264,2]
[348524537,1736603461957,-500.0,0.00011264,2]
[348524538,1736603461966,-500.0,0.00011264,2]
[348524539,1736603461975,-500.0,0.00011264,2]
[348524540,1736603461984,-881.06,0.00011264,2]
[348524541,1736603461994,-4806.9452303,0.00011268,2]
[348524542,1736603462003,-429.82131162,0.00011271,2]
[348524543,1736603462012,-358.4769591,0.00011333,2]
[348524544,1736603462021,-732.64,0.00011337,2]
[348524545,1736603462030,-437.62,0.00011342,2]
[348524546,1736603462039,-218.49384816,0.00011348,2]
[348524547,1736603462048,-150.0,0.00011399,2]
[348524548,1736603462057,-3049.42410431,0.00011404,2]
[348524549,1736603462066,-152.0,0.00011431,5]
[348524550,1736603462075,-218.49384816,0.00011452,2]
[348524551,1736603462084,-437.16,0.00011479,2]
[348524552,1736603462093,-437.16,0.00011479,2]
[348524553,1736603462102,-436.92,0.00011479,2]
[348524554,1736603462111,-1955.14,0.00011479,2]
[348524555,1736603462120,-437.08,0.00011479,2]
[348524556,1736603462129,-1058.0,0.00011503,2]
[348524557,1736603462138,-2751.0,0.00011507,2]
[348524558,1736603462147,-5024.3920849,0.00011529,2]
[348524559,1736603462156,-500.0,0.0001153,2]
[348524560,1736603462165,-518.32,0.0001153,2]
[348524561,1736603462175,-2325.6646636,0.0001153,2]
[348524562,1736603462185,-777.18,0.00011531,2]
[348524563,1736603462194,-500.0,0.00011531,2]
[348524564,1736603462204,-500.0,0.00011531,2]
[348524565,1736603462213,-674.18,0.00011531,2]
[348524566,1736603462222,-500.0,0.00011531,2]
[348524567,1736603462231,-500.0,0.00011531,2]
[348524568,1736603462240,-500.0,0.00011531,2]
[348524569,1736603462250,-500.0,0.00011531,2]
[348524570,1736603462259,-544.17,0.00011531,2]
[348524571,1736603462269,-240.59413547,0.00011531,2]
[348524572,1736603462278,-500.0,0.00011531,2]
[348524573,1736603462289,-500.0,0.00011531,2]
[348524574,1736603462298,-535.64,0.00011531,2]
[348524575,1736603462308,-580.72,0.00011531,2]
[348524576,1736603462317,-500.0,0.00011531,2]
[348524577,1736603462326,-500.0,0.00011531,2]
[348524578,1736603462336,-500.0,0.00011531,2]
[348524579,1736603462345,-500.0,0.00011531,2]
[348524580,1736603462355,-553.81,0.00011531,2]
[348524581,1736603462365,-518.9,0.00011531,2]
[348524582,1736603462375,-572.98,0.00011531,2]
[348524583,1736603462385,-501.21,0.00011531,2]
[348524584,1736603462394,-500.0,0.00011531,2]
[348524585,1736603462404,-1089.39,0.00011533,2]
[348524586,1736603462415,-1328.17,0.00011533,2]
[348524587,1736603462427,-1316.37,0.00011533,2]
[348524588,1736603462437,-1075.49,0.00011533,2]
[348524589,1736603462449,-500.0,0.00011533,2]
[348524590,1736603462460,-931.88,0.00011533,2]
[348524591,1736603462469,-1446.69,0.00011533,2]
[348524592,1736603462479,-841.26,0.00011533,2]
[348524593,1736603462489,-819.81,0.00011534,2]
[348524594,1736603462499,-353.88818378,0.00011534,2]
[348524595,1736603462508,-80.22989294,0.00011534,2]
[348524596,1736603462523,-419.77010706,0.00011534,2]
[348524597,1736603462532,-2354.45,0.00011535,2]
[348524598,1736603462542,-1110.44,0.00011535,2]
[348524599,1736603462552,-984.69,0.00011535,2]
[348524600,1736603462562,-514.6,0.00011535,2]
[348524601,1736603462572,-500.0,0.00011536,2]
[348524602,1736603462582,-500.0,0.00011536,2]
[348524603,1736603462591,-663.68,0.00011536,2]
[348524604,1736603462600,-500.0,0.00011536,2]
[348524605,1736603462611,-625.65,0.00011536,2]
[348524606,1736603462620,-500.0,0.00011536,2]
[348524607,1736603462630,-578.21,0.00011536,2]
[348524608,1736603462640,-1286.09,0.00011536,2]
[348524609,1736603462649,-1154.22,0.00011536,2]
[348524610,1736603462659,-500.0,0.00011536,2]
[348524611,1736603462669,-500.0,0.00011536,2]
[348524612,1736603462679,-1265.74,0.00011536,2]
[348524613,1736603462688,-3324.76,0.00011536,2]
[348524614,1736603462697,-500.0,0.00011536,2]
[348524615,1736603462707,-1160.42,0.00011536,2]
[348524616,1736603462716,-812.63,0.00011536,2]
[348524617,1736603462725,-288.80100513,0.00011536,2]
[348524618,1736603462750,-353.526063,0.00011536,2]
[348524619,1736603462762,-431.7129992,0.00011536,2]
[348524620,1736603462774,-198.44993267,0.00011536,2]
[348524621,1736603462784,-1317.24,0.00011536,2]
[348524622,1736603462794,-1252.89,0.00011536,2]
[348524623,1736603462804,-1492.12,0.00011536,2]
[348524624,1736603462814,-292.97,0.00011536,2]
[348524625,1736603462825,-500.0,0.00011536,2]
[348524626,1736603462835,-2839.32,0.00011536,2]
[348524627,1736603462845,-2731.28,0.00011536,2]
[348524628,1736603462857,-1077.97,0.00011536,2]
[348524629,1736603462867,-1146.77,0.00011536,2]
[348524630,1736603462876,-829.6,0.00011536,2]
[348524631,1736603462886,-500.0,0.00011536,2]
[348524632,1736603462895,-500.0,0.00011536,2]
[348524633,1736603462906,-1695.87,0.00011536,2]
[348524634,1736603462916,-1185.34,0.00011536,2]
[348524635,1736603462925,-2047.27,0.00011536,2]
[348524636,1736603462935,-1067.7,0.00011536,2]
[348524637,1736603462944,-1021.9,0.00011536,2]
[348524638,1736603462954,-500.0,0.00011536,2]
[348524639,1736603462963,-803.46,0.00011536,2]
[348524640,1736603462973,-1346.27,0.00011536,2]
[348524641,1736603462982,-1713.52,0.00011536,2]
[348524642,1736603462991,-150.0,0.00011536,2]
[348524643,1736603463001,-1018.84,0.00011536,2]
[348524644,1736603463011,-897.68,0.00011537,2]
[348524645,1736603463021,-820.36,0.00011537,2]
[348524646,1736603463031,-877.47,0.00011537,2]
[348524647,1736603463040,-2093.3,0.00011537,2]
[348524648,1736603463050,-732.64,0.00011537,2]
[348524649,1736603463059,-732.64,0.00011537,2]
[348524650,1736603463069,-732.64,0.00011537,2]
[348524651,1736603463079,-732.64,0.00011537,2]
[348524652,1736603463089,-732.70438928,0.00011537,2]
[348524653,1736603463101,-2101.68,0.00011537,2]
[348524654,1736603463111,-500.0,0.00011537,2]
[348524655,1736603463120,-626.22,0.00011537,2]
[348524656,1736603463129,-991.1,0.00011537,2]
[348524657,1736603463139,-1117.67,0.00011537,2]
[348524658,1736603463149,-997.51,0.00011538,2]
[348524659,1736603463158,-955.94,0.00011538,2]
[348524660,1736603463168,-500.0,0.00011538,2]
[348524661,1736603463177,-971.79,0.00011538,2]
[348524662,1736603463186,-520.83,0.00011538,2]
[348524663,1736603463196,-905.0,0.00011538,2]
[348524664,1736603463205,-1064.79,0.00011538,2]
[348524665,1736603463215,-954.36,0.00011538,2]
[348524666,1736603463224,-1828.24,0.00011538,2]
[348524667,1736603463234,-621.53,0.00011538,2]
[348524668,1736603463244,-500.0,0.00011538,2]
[348524669,1736603463253,-500.0,0.00011538,2]
[348524670,1736603463263,-1305.99,0.00011538,2]
[348524671,1736603463273,-500.0,0.00011538,2]
[348524672,1736603463282,-1196.5,0.00011538,2]
[348524673,1736603463293,-1086.04,0.00011538,2]
[348524674,1736603463302,-1086.04,0.00011538,2]
[348524675,1736603463312,-500.0,0.00011538,2]
[348524676,1736603463322,-1996.3,0.00011538,2]
[348524677,1736603463332,-500.0,0.00011538,2]
[348524678,1736603463342,-500.0,0.00011538,2]
[348524679,1736603463352,-813.94,0.00011538,2]
[348524680,1736603463362,-500.0,0.00011538,2]
[348524681,1736603463372,-500.0,0.00011538,2]
[348524682,1736603463381,-500.0,0.00011538,2]
[348524683,1736603463391,-573.53,0.00011538,2]
[348524684,1736603463401,-500.0,0.00011538,2]
[348524685,1736603463411,-629.14,0.00011538,2]
[348524686,1736603463422,-581.9,0.00011538,2]
[348524687,1736603463437,-641.71,0.00011538,2]
[348524688,1736603463447,-844.03,0.00011538,2]
[348524689,1736603463457,-500.0,0.00011538,2]
[348524690,1736603463467,-623.44,0.00011538,2]
[348524691,1736603463478,-500.0,0.00011538,2]
[348524692,1736603463488,-1695.69,0.00011538,2]
[348524693,1736603463497,-704.6,0.00011538,2]
[348524694,1736603463508,-1059.37,0.00011538,2]
[348524695,1736603463518,-500.0,0.00011538,2]
[348524696,1736603463528,-672.1,0.00011538,2]
[348524697,1736603463538,-593.17,0.00011538,2]
[348524698,1736603463548,-500.0,0.00011538,2]
[348524699,1736603463558,-1209.760486,0.00011538,2]
[348524700,1736603463568,-1171.53407,0.00011538,2]
[348524701,1736603463578,-158.280976,0.00011538,2]
[348524702,1736603463588,-2022.06,0.00011538,2]
[348524703,1736603463598,-500.0,0.00011538,2]
[348524704,1736603463608,-500.0,0.00011538,2]
[348524705,1736603463618,-616.67,0.00011538,2]
[348524706,1736603463627,-473.51921399,0.00011538,2]
[348524707,1736603463636,-517.21,0.00011538,2]
[348524708,1736603463647,-500.0,0.00011538,2]
[348524709,1736603463656,-500.0,0.00011538,2]
[348524710,1736603463666,-2883.11,0.00011538,2]
[348524711,1736603463677,-500.0,0.00011538,2]
[348524712,1736603463687,-764.33,0.00011538,2]
[348524713,1736603463697,-694.81,0.00011538,2]
[348524714,1736603463707,-500.0,0.00011538,2]
[348524715,1736603463717,-500.0,0.00011538,2]
[348524716,1736603463727,-500.0,0.00011538,2]
[348524717,1736603463736,-540.04,0.00011538,2]
[348524718,1736603463750,-881.06,0.00011538,2]
[348524719,1736603463760,-358.4769591,0.0001155,2]
[348524720,1736603463770,-218.49384816,0.00011555,2]
[348524721,1736603463780,-168.21,0.00011649,2]
[348524722,1736603463789,-218.49384816,0.00011659,2]
[348524723,1736603463799,-150.0,0.00011673,2]
[348524724,1736603463808,-633.29,0.00011687,2]
[348524725,1736603463818,-1000.0,0.00011704,2]
[348524726,1736603463828,-218.49384816,0.00011762,2]
[348524727,1736603463838,-358.4769591,0.00011767,2]
[348524728,1736603463848,-1047.41,0.00011768,2]
[348524729,1736603463858,-500.0,0.0001177,2]
[348524730,1736603463868,-5241.8389395,0.00011797,2]
[348524731,1736603463878,-3049.42410431,0.00011802,2]
[348524732,1736603463887,-500.0,0.00011804,2]
[348524733,1736603463897,-518.32,0.00011804,2]
[348524734,1736603463907,-2436.5055305,0.00011804,2]
[348524735,1736603463916,-777.18,0.00011805,2]
[348524736,1736603463926,-500.0,0.00011805,2]
[348524737,1736603463936,-542.6040117,0.00011805,2]
[348524738,1736603463946,-674.18,0.00011805,2]
[348524739,1736603463955,-500.0,0.00011805,2]
[348524740,1736603463965,-500.0,0.00011805,2]
[348524741,1736603463975,-464.74042403,0.00011805,2]
[348524742,1736603463985,-155.89,0.00011805,2]
[348524743,1736603463994,-544.17,0.00011805,2]
[348524744,1736603464004,-500.0,0.00011805,2]
[348524745,1736603464014,-500.0,0.00011805,2]
[348524746,1736603464024,-580.72,0.00011805,2]
[348524747,1736603464034,-500.0,0.00011805,2]
[348524748,1736603464043,-500.0,0.00011805,2]
[348524749,1736603464053,-500.0,0.00011805,2]
[348524750,1736603464063,-386.68885339,0.00011805,2]
[348524751,1736603464073,-553.81,0.00011805,2]
[348524752,1736603464082,-518.9,0.00011805,2]
[348524753,1736603464092,-572.98,0.00011805,2]
[348524754,1736603464102,-501.21,0.00011805,2]
[348524755,1736603464111,-500.0,0.00011805,2]
[348524756,1736603464122,-1089.39,0.00011807,2]
[348524757,1736603464131,-1328.17,0.00011807,2]
[348524758,1736603464141,-1316.37,0.00011807,2]
[348524759,1736603464151,-1075.49,0.00011807,2]
[348524760,1736603464161,-500.0,0.00011807,2]
[348524761,1736603464171,-931.88,0.00011807,2]
[348524762,1736603464181,-1446.69,0.00011807,2]
[348524763,1736603464191,-841.26,0.00011807,2]
[348524764,1736603464201,-819.81,0.00011808,2]
[348524765,1736603464210,-500.0,0.00011808,2]
[348524766,1736603464220,-2354.45,0.00011809,2]
[348524767,1736603464229,-1110.44,0.00011809,2]
[348524768,1736603464239,-984.69,0.00011809,2]
[348524769,1736603464249,-514.6,0.00011809,2]
[348524770,1736603464258,-500.0,0.0001181,2]
[348524771,1736603464268,-500.0,0.0001181,2]
[348524772,1736603464277,-663.68,0.0001181,2]
[348524773,1736603464288,-500.0,0.0001181,2]
[348524774,1736603464298,-625.65,0.0001181,2]
[348524775,1736603464308,-277.32768814,0.0001181,2]
[348524776,1736603464317,-578.21,0.0001181,2]
[348524777,1736603464327,-1286.09,0.0001181,2]
[348524778,1736603464336,-1154.22,0.0001181,2]
[348524779,1736603464346,-500.0,0.0001181,2]
[348524780,1736603464356,-500.0,0.0001181,2]
[348524781,1736603464366,-1265.74,0.0001181,2]
[348524782,1736603464377,-3324.76,0.0001181,2]
[348524783,1736603464387,-500.0,0.0001181,2]
[348524784,1736603464396,-1160.42,0.0001181,2]
[348524785,1736603464406,-812.63,0.0001181,2]
[348524786,1736603464416,-1272.49,0.0001181,2]
[348524787,1736603464428,-1317.24,0.0001181,2]
[348524788,1736603464438,-1252.89,0.0001181,2]
[348524789,1736603464447,-1492.12,0.0001181,2]
[348524790,1736603464457,-500.0,0.0001181,2]
[348524791,1736603464468,-2839.32,0.0001181,2]
[348524792,1736603464480,-2731.28,0.0001181,2]
[348524793,1736603464489,-1077.97,0.0001181,2]
[348524794,1736603464500,-1146.77,0.0001181,2]
[348524795,1736603464511,-829.6,0.0001181,2]
[348524796,1736603464522,-500.0,0.0001181,2]
[348524797,1736603464532,-580.79393083,0.0001181,2]
[348524798,1736603464542,-1093.66198648,0.0001181,2]
[348524799,1736603464556,-602.20801352,0.0001181,2]
[348524800,1736603464566,-1185.34,0.0001181,2]
[348524801,1736603464577,-1209.07064429,0.0001181,2]
[348524802,1736603464589,-755.60676301,0.0001181,2]
[348524803,1736603464602,-82.5925927,0.0001181,2]
[348524804,1736603464612,-1067.7,0.0001181,2]
[348524805,1736603464623,-1021.9,0.0001181,2]
[348524806,1736603464633,-500.0,0.0001181,2]
[348524807,1736603464643,-803.46,0.0001181,2]
[348524808,1736603464653,-134.19820008,0.0001181,2]
[348524809,1736603464665,-1212.07179992,0.0001181,2]
[348524810,1736603464675,-1713.52,0.0001181,2]
[348524811,1736603464685,-150.0,0.0001181,2]
[348524812,1736603464694,-1018.84,0.0001181,2]
[348524813,1736603464704,-414.10819978,0.00011811,2]
[348524814,1736603464716,-483.57180022,0.00011811,2]
[348524815,1736603464726,-820.36,0.00011811,2]
[348524816,1736603464736,-877.47,0.00011811,2]
[348524817,1736603464929,-2093.3,0.00011811,2]
[348524818,1736603464939,-2101.68,0.00011811,2]
[348524819,1736603464949,-500.0,0.00011811,2]
[348524820,1736603464959,-626.22,0.00011811,2]
[348524821,1736603464969,-991.1,0.00011811,2]
[348524822,1736603464978,-1117.67,0.00011811,2]
[348524823,1736603464990,-997.51,0.00011812,2]
[348524824,1736603465000,-955.94,0.00011812,2]
[348524825,1736603465010,-500.0,0.00011812,2]
[348524826,1736603465021,-971.79,0.00011812,2]
[348524827,1736603465031,-520.83,0.00011812,2]
[348524828,1736603465041,-905.0,0.00011812,2]
[348524829,1736603465050,-1064.79,0.00011812,2]
[348524830,1736603465060,-954.36,0.00011812,2]
[348524831,1736603465070,-1828.24,0.00011812,2]
[348524832,1736603465080,-621.53,0.00011812,2]
[348524833,1736603465089,-500.0,0.00011812,2]
[348524834,1736603465099,-500.0,0.00011812,2]
[348524835,1736603465109,-1305.99,0.00011812,2]
[348524836,1736603465118,-500.0,0.00011812,2]
[348524837,1736603465128,-1196.5,0.00011812,2]
[348524838,1736603465138,-1086.04,0.00011812,2]
[348524839,1736603465147,-1086.04,0.00011812,2]
[348524840,1736603465156,-500.0,0.00011812,2]
[348524841,1736603465165,-1641.28269873,0.00011812,2]
[348524842,1736603465178,-355.01730127,0.00011812,2]
[348524843,1736603465188,-500.0,0.00011812,2]
[348524844,1736603465198,-500.0,0.00011812,2]
[348524845,1736603465207,-813.94,0.00011812,2]
[348524846,1736603465217,-360.71,0.00011812,2]
[348524847,1736603465227,-500.0,0.00011812,2]
[348524848,1736603465236,-630.69,0.00011812,2]
[348524849,1736603465246,-573.53,0.00011812,2]
[348524850,1736603465256,-500.0,0.00011812,2]
[348524851,1736603465266,-629.14,0.00011812,2]
[348524852,1736603465275,-581.9,0.00011812,2]
[348524853,1736603465285,-641.71,0.00011812,2]
[348524854,1736603465294,-844.03,0.00011812,2]
[348524855,1736603465304,-488.86737017,0.00011812,2]
[348524856,1736603465327,-11.13262983,0.00011812,2]
[348524857,1736603465337,-623.44,0.00011812,2]
[348524858,1736603465346,-500.0,0.00011812,2]
[348524859,1736603465356,-1695.69,0.00011812,2]
[348524860,1736603465365,-454.19871262,0.00011812,2]
[348524861,1736603465383,-250.40128738,0.00011812,2]
[348524862,1736603465393,-149.30875262,0.00011812,2]
[348524863,1736603465404,-910.06124738,0.00011812,2]
[348524864,1736603465413,-500.0,0.00011812,2]
[348524865,1736603465424,-672.1,0.00011812,2]
[348524866,1736603465436,-339.53555262,0.00011812,2]
[348524867,1736603465449,-253.63444738,0.00011812,2]
[348524868,1736603465458,-500.0,0.00011812,2]
[348524869,1736603465467,-1209.760486,0.00011812,2]
[348524870,1736603465476,-1171.53407,0.00011812,2]
[348524871,1736603465486,-2022.06,0.00011812,2]
[348524872,1736603465495,-500.0,0.00011812,2]
[348524873,1736603465505,-500.0,0.00011812,2]
[348524874,1736603465515,-616.67,0.00011812,2]
[348524875,1736603465524,-517.21,0.00011812,2]
[348524876,1736603465534,-500.0,0.00011812,2]